bitfinex-derivatives/quotes_BTCF0:USTF0_20250216
["timestamp","ask_amount","ask_price","bid_price","bid_amount"]
[1739711323920,0.0303,97157.0,97136.0,0.5819]
[1739711324130,0.00223442,97137.0,97136.0,0.5819]
[1739711324827,0.00423442,97137.0,97136.0,0.5819]
[1739711328234,0.00411425,97137.0,97136.0,0.5819]
[1739711328837,0.00395408,97137.0,97136.0,0.5819]
[1739711329935,0.00375391,97137.0,97136.0,0.5819]
[1739711330532,0.00351374,97137.0,97136.0,0.5819]
[1739711330935,0.00323357,97137.0,97136.0,0.5819]
[1739711331539,0.0029134,97137.0,97136.0,0.5819]
[1739711332042,0.00255323,97137.0,97136.0,0.5819]
[1739711332639,0.00219306,97137.0,97136.0,0.5819]
[1739711332942,0.00179289,97137.0,97136.0,0.5819]
[1739711333240,0.00179289,97137.0,97136.0,0.58194]
[1739711333442,0.00135272,97137.0,97136.0,0.58194]
[1739711333739,0.00135272,97137.0,97136.0,0.58198]
[1739711336041,0.03261255,97137.0,97136.0,0.58198]
[1739711336236,0.03261255,97137.0,97136.0,0.22118]
[1739711336431,0.03261255,97137.0,97136.0,0.58198]
[1739711338944,0.03217238,97137.0,97136.0,0.58198]
[1739711344648,0.04269415,97137.0,97136.0,0.58198]
[1739711345548,0.03217238,97137.0,97136.0,0.36088]
[1739711345743,0.03217238,97137.0,97136.0,8e-05]
[1739711346741,0.04243616,97137.0,97136.0,8e-05]
[1739711347949,0.40323616,97137.0,97136.0,8e-05]
[1739711350143,0.40323616,97137.0,97131.0,0.00016]
[1739711350349,0.70323616,97137.0,97118.0,0.10932201]
[1739711350543,0.70323616,97137.0,97112.0,0.19670485]
[1739711350544,1.02119983,97119.0,97112.0,0.19670485]
[1739711350750,0.72119983,97119.0,97112.0,0.04700485]
[1739711350944,0.72119983,97119.0,97104.0,0.30833557]
[1739711351248,0.3608,97105.0,97104.0,0.30833557]
[1739711351646,0.36047983,97105.0,97104.0,0.30833557]
[1739711352242,0.36019966,97105.0,97104.0,0.30833557]
[1739711352654,0.35995949,97105.0,97104.0,0.30833557]
[1739711353352,0.35975932,97105.0,97104.0,0.30833557]
[1739711353851,0.35959915,97105.0,97104.0,0.31533557]
[1739711354440,0.35947898,97105.0,97104.0,0.31533557]
[1739711355447,0.35947898,97105.0,97104.0,0.007]
[1739711356650,0.35947898,97105.0,97097.0,0.0614]
[1739711356850,0.3608,97103.0,97097.0,0.0614]
[1739711357058,0.1,97102.0,97097.0,0.06124017]
[1739711357552,0.0285,97101.0,97097.0,0.06104034]
[1739711357757,0.0285,97101.0,97097.0,0.06604034]
[1739711357956,0.0285,97101.0,97097.0,0.06904034]
[1739711358155,0.0285,97101.0,97022.0,0.55472726]
[1739711358452,0.3608,97082.0,97050.0,0.3608]
[1739711358657,0.3608,97082.0,97068.0,0.00036022]
[1739711358855,0.3608,97070.0,97068.0,0.00036022]
[1739711359066,0.10168,97069.0,97061.0,1.59516]
[1739711359352,0.3608,97070.0,97069.0,4.039e-05]
[1739711359560,0.10183451,97075.0,97069.0,4.039e-05]
[1739711359860,0.00015451,97075.0,97066.0,0.36052056]
[1739711360159,0.00015451,97075.0,97069.0,4e-05]
[1739711360663,0.00115451,97075.0,97061.0,1.59476017]
[1739711360962,0.00115451,97075.0,97061.0,1.95504017]
[1739711361146,0.00115451,97075.0,97061.0,1.95460034]
[1739711361351,0.00215451,97075.0,97061.0,1.95460034]
[1739711361758,0.00215451,97075.0,97061.0,1.95412051]
[1739711362157,0.00215451,97075.0,97061.0,1.95360068]
[1739711362763,0.00215451,97075.0,97061.0,1.95304085]
[1739711362951,0.00115451,97075.0,97061.0,1.95304085]
[1739711363257,0.00215451,97075.0,97061.0,1.95244102]
[1739711363765,0.36144001,97082.0,97070.0,0.36020017]
[1739711364073,0.10216,97081.0,97070.0,0.36020017]
[1739711364367,0.00064001,97082.0,97080.0,1.5]
[1739711364551,4e-05,97082.0,97081.0,0.0312]
[1739711366664,4e-05,97082.0,97081.0,0.0632]
[1739711366859,4e-05,97082.0,97081.0,0.0942]
[1739711367656,4e-05,97082.0,97081.0,0.0952]
[1739711367955,0.36084,97082.0,97081.0,0.0952]
[1739711380455,0.3608,97082.0,97081.0,0.0952]
[1739711385975,0.15446041,97086.0,97081.0,0.0952]
[1739711386279,0.1538604,97086.0,97081.0,0.0952]
[1739711387873,0.1538604,97086.0,97081.0,0.0942]
[1739711389881,0.00153731,97087.0,97081.0,0.0942]
[1739711391182,0.00153731,97087.0,97081.0,0.1043343]
[1739711392986,0.0015458,97090.0,97081.0,0.1043343]
[1739711401594,0.0015458,97090.0,97081.0,0.0942]
[1739711402720,0.0015458,97090.0,97081.0,0.10471493]
[1739711403088,0.0015458,97090.0,97081.0,0.0942]
[1739711403286,0.0015458,97090.0,97081.0,0.10440828]
[1739711403685,0.0015458,97090.0,97081.0,0.0942]
[1739711410906,0.003,97089.0,97081.0,0.0942]
[1739711411094,0.01330121,97089.0,97081.0,0.0942]
[1739711411294,0.003,97089.0,97081.0,0.0942]
[1739711411502,0.003,97089.0,97081.0,0.063]
[1739711412609,0.10132,97088.0,97081.0,0.063]
[1739711415105,0.10132,97088.0,97081.0,0.032]
[1739711416810,0.1538604,97084.0,97081.0,0.032]
[1739711419013,0.1538604,97084.0,97082.0,1.5]
[1739711419408,0.1538604,97084.0,97083.0,0.0325]
[1739711421215,0.1538604,97084.0,97083.0,1.5325]
[1739711421415,0.1538604,97086.0,97083.0,1.5325]
[1739711421619,0.1538604,97086.0,97084.0,0.0301]
[1739711424010,0.01013878,97089.0,97084.0,0.0301]
[1739711424214,0.003,97088.0,97083.0,0.0325]
[1739711424413,0.3608,97084.0,97083.0,0.0325]
[1739711427824,0.3718,97084.0,97083.0,0.0325]
[1739711428024,0.3718,97084.0,97083.0,1.5325]
[1739711428915,0.3708,97084.0,97083.0,1.5325]
[1739711429114,0.3708,97084.0,97083.0,0.0325]
[1739711429826,0.3648,97084.0,97083.0,0.0325]
[1739711430023,0.3708,97084.0,97083.0,0.0325]
[1739711430221,0.3708,97084.0,97083.0,0.0632]
[1739711431322,0.3648,97084.0,97083.0,0.0632]
[1739711431529,0.3708,97084.0,97083.0,0.0632]
[1739711433926,0.3698,97084.0,97083.0,0.0632]
[1739711437623,0.009,97084.0,97083.0,0.0632]
[1739711437823,0.3698,97084.0,97083.0,0.0632]
[1739711438027,0.00015451,97091.0,97083.0,0.0632]
[1739711438224,0.1538604,97094.0,97088.0,0.3608]
[1739711438533,0.1039604,97094.0,97088.0,0.3708715]
[1739711438725,0.1039604,97094.0,97089.0,1.5]
[1739711439334,0.0041604,97094.0,97089.0,1.5]
[1739711439536,0.007,97091.0,97089.0,1.5]
[1739711439729,0.0091604,97094.0,97089.0,1.5]
[1739711440821,0.0091604,97094.0,97090.0,0.3608]
[1739711441038,0.0101604,97094.0,97090.0,0.3608]
[1739711441241,0.011,97094.0,97090.0,0.3608]
[1739711441627,0.006,97094.0,97090.0,0.3608]
[1739711441829,0.007,97094.0,97090.0,0.3608]
[1739711442737,0.003,97094.0,97090.0,0.3608]
[1739711442937,0.003,97094.0,97091.0,0.10044]
[1739711443529,0.001,97094.0,97091.0,0.10044]
[1739711444238,0.001,97094.0,97092.0,1.5]
[1739711444540,0.00015451,97101.0,97092.0,1.5]
[1739711444739,0.00015451,97101.0,97100.0,0.3608]
[1739711445833,0.00315451,97101.0,97100.0,0.3608]
[1739711446532,0.00615451,97101.0,97100.0,0.3608]
[1739711449334,0.18471948,97130.0,97100.0,0.3608]
[1739711449539,0.10024,97120.0,97100.0,0.3608]
[1739711450042,0.10032,97121.0,97100.0,0.3608]
[1739711450539,0.01,97116.0,97100.0,0.3618]
[1739711451542,0.017,97116.0,97100.0,0.3628]
[1739711452739,0.017,97116.0,97108.0,0.3608]
[1739711452940,0.017,97116.0,97109.0,0.0956]
[1739711454035,0.017,97116.0,97109.0,0.0966]
[1739711454440,0.014,97116.0,97109.0,0.0966]
[1739711455034,0.014,97116.0,97110.0,1.5]
[1739711455737,0.014,97116.0,97110.0,1.51046322]
[1739711456130,0.012,97116.0,97110.0,1.51046322]
[1739711457038,0.005,97116.0,97110.0,1.51146322]
[1739711457334,0.012,97116.0,97110.0,1.51246322]
[1739711459843,0.012,97116.0,97110.0,1.502]
[1739711465842,0.00032,97132.0,97114.0,0.3608]
[1739711466043,0.03288,97127.0,97124.0,0.3608]
[1739711466248,8e-05,97130.0,97125.0,0.094]
[1739711466451,8e-05,97130.0,97126.0,1.5]
[1739711467049,0.00508,97130.0,97126.0,1.5]
[1739711467255,0.007,97127.0,97126.0,1.5]
[1739711467549,0.007,97127.0,97126.0,1.5101844]
[1739711467753,0.00508,97130.0,97126.0,1.5101844]
[1739711467962,0.01108,97130.0,97127.0,0.01609343]
[1739711468154,0.01108,97130.0,97128.0,0.01609343]
[1739711468353,0.00508,97130.0,97129.0,0.01609343]
[1739711468750,0.00108,97130.0,97129.0,0.01609343]
[1739711469559,8e-05,97130.0,97129.0,0.01609343]
[1739711470656,0.00408,97130.0,97129.0,0.01609343]
[1739711471251,0.00208,97130.0,97129.0,0.01609343]
[1739711471749,0.00208,97130.0,97129.0,0.01609379]
[1739711472064,0.00308,97130.0,97129.0,0.01609379]
[1739711472755,0.00208,97130.0,97129.0,0.01609379]
[1739711472956,0.00308,97130.0,97129.0,0.01609379]
[1739711473556,0.00308,97130.0,97129.0,0.01609365]
[1739711473752,0.00208,97130.0,97129.0,0.01609365]
[1739711475557,0.00108,97130.0,97129.0,0.01609365]
[1739711475759,0.00208,97130.0,97129.0,0.01609365]
[1739711476158,0.00208,97130.0,97129.0,0.01609375]
[1739711476672,0.00108,97130.0,97129.0,0.01609375]
[1739711476861,0.00208,97130.0,97129.0,0.01609375]
[1739711477063,0.00208,97130.0,97126.0,0.3608]
[1739711477967,0.00108,97130.0,97126.0,0.3608]
[1739711479963,0.00108,97130.0,97125.0,1.5006]
[1739711480164,0.00108,97130.0,97125.0,1.5]
[1739711480965,0.00108,97130.0,97126.0,0.0301]
[1739711481861,0.00308,97130.0,97126.0,0.0301]
[1739711482969,0.00308,97130.0,97127.0,0.01609323]
[1739711483266,0.00208,97130.0,97128.0,0.01609323]
[1739711483469,0.00308,97130.0,97129.0,0.01609323]
[1739711484063,0.00208,97130.0,97126.0,0.0301]
[1739711484275,0.00108,97130.0,97127.0,1.5]
[1739711484460,0.00408,97130.0,97127.0,1.5]
[1739711484865,0.00308,97130.0,97127.0,1.5]
[1739711485067,0.00308,97130.0,97128.0,0.0160935]
[1739711485272,0.00308,97130.0,97129.0,0.0160935]
[1739711485460,0.03398,97130.0,97129.0,0.0160935]
[1739711486069,0.03398,97130.0,97125.0,0.3608]
[1739711487064,0.03298,97130.0,97125.0,0.3608]
[1739711487265,0.03398,97130.0,97125.0,0.3608]
[1739711487862,0.03198,97130.0,97125.0,0.3608]
[1739711488063,0.03398,97130.0,97125.0,0.3608]
[1739711489167,0.03398,97130.0,97126.0,0.01609381]
[1739711489462,0.03298,97130.0,97127.0,0.01609381]
[1739711489659,0.03398,97130.0,97128.0,0.01609381]
[1739711489868,0.03398,97130.0,97129.0,0.01609381]
[1739711490066,0.03398,97130.0,97129.0,0.01609401]
[1739711491171,0.03298,97130.0,97129.0,0.01609401]
[1739711492170,0.00208,97130.0,97129.0,0.01609401]
[1739711492572,0.00208,97130.0,97129.0,0.01609386]
[1739711493576,0.00108,97130.0,97129.0,0.01609386]
[1739711493771,0.00208,97130.0,97129.0,0.01609386]
[1739711494167,0.00208,97130.0,97129.0,0.01609384]
[1739711495566,0.00108,97130.0,97129.0,0.01609384]
[1739711495759,0.00108,97130.0,97129.0,1.51609384]
[1739711496164,0.00108,97130.0,97129.0,1.51609379]
[1739711497060,8e-05,97130.0,97129.0,0.01609379]
[1739711497263,0.03298,97130.0,97129.0,0.01609379]
[1739711498278,0.03298,97130.0,97129.0,0.01609386]
[1739711502570,0.03298,97130.0,97129.0,0.01609387]
[1739711505574,0.03298,97130.0,97129.0,0.01609377]
[1739711507273,0.03298,97130.0,97129.0,0.04184374]
[1739711508590,0.03298,97130.0,97129.0,0.04184367]
[1739711508779,8e-05,97130.0,97129.0,0.04184367]
[1739711509283,8e-05,97130.0,97129.0,0.01609372]
[1739711510288,8e-05,97130.0,97129.0,0.0418437]
[1739711510675,8e-05,97130.0,97129.0,0.04184369]
[1739711511384,8e-05,97130.0,97129.0,0.01609373]
[1739711514688,8e-05,97130.0,97129.0,0.01609195]
[1739711515182,8e-05,97130.0,97129.0,1.51609195]
[1739711515989,8e-05,97130.0,97129.0,1.87689195]
[1739711516585,8e-05,97136.0,97129.0,1.87689195]
[1739711516778,8e-05,97136.0,97130.0,0.10989107]
[1739711516983,8e-05,97136.0,97131.0,0.01609107]
[1739711517281,8e-05,97136.0,97132.0,0.01609107]
[1739711517482,8e-05,97136.0,97133.0,0.01609107]
[1739711517682,8e-05,97136.0,97134.0,0.01609107]
[1739711517989,8e-05,97136.0,97135.0,0.01609107]
[1739711518778,0.00308,97136.0,97135.0,0.01553124]
[1739711519174,0.00108,97136.0,97135.0,0.37633124]
[1739711519379,0.00308,97136.0,97135.0,0.37633124]
[1739711520388,0.00208,97136.0,97135.0,0.37633124]
[1739711520690,0.00308,97136.0,97135.0,0.37633124]
[1739711522383,0.00308,97136.0,97135.0,0.3608]
[1739711522687,0.00308,97136.0,97135.0,0.46028]
[1739711524278,0.03518,97136.0,97135.0,0.46028]
[1739711524479,0.03518,97136.0,97135.0,0.3608]
[1739711529287,0.03518,97136.0,97135.0,1.8608]
[1739711532191,0.03518,97136.0,97135.0,0.3608]
[1739711532586,0.06718,97136.0,97133.0,8e-05]
[1739711535388,0.06518,97136.0,97133.0,8e-05]
[1739711535693,0.06718,97136.0,97133.0,8e-05]
[1739711542491,0.06718,97136.0,97134.0,0.01609364]
[1739711542690,0.06718,97136.0,97135.0,0.01609364]
[1739711543593,0.06618,97136.0,97135.0,0.01609364]
[1739711543898,0.06718,97136.0,97135.0,0.01609364]
[1739711545899,0.06618,97136.0,97135.0,0.01609364]
[1739711546098,0.06718,97136.0,97135.0,0.0160941]
[1739711549001,0.06718,97136.0,97133.0,8e-05]
[1739711549200,0.06718,97136.0,97134.0,0.01609405]
[1739711549400,0.06718,97136.0,97135.0,0.01609405]
[1739711552397,0.06518,97136.0,97135.0,0.01609405]
[1739711552593,0.06718,97136.0,97135.0,0.01609405]
[1739711553111,0.42798,97136.0,97135.0,0.01609405]
[1739711553604,0.06718,97136.0,97135.0,0.01609405]
[1739711553795,0.42798,97136.0,97135.0,0.01609405]
[1739711557403,0.39598,97136.0,97135.0,0.01609405]
[1739711557808,0.39598,97136.0,97135.0,0.01609418]
[1739711559300,0.39598,97136.0,97134.0,0.0304]
[1739711559506,0.39598,97136.0,97135.0,0.01609419]
[1739711563816,0.36388,97136.0,97135.0,0.01609419]
[1739711567809,0.36388,97136.0,97135.0,0.01609379]
[1739711574224,0.36388,97136.0,97134.0,0.0304]
[1739711574419,0.36388,97136.0,97135.0,0.01609342]
[1739711576921,0.36288,97136.0,97135.0,0.01609342]
[1739711577117,0.36388,97136.0,97135.0,0.01609342]
[1739711577420,0.39458,97136.0,97135.0,0.01609342]
[1739711579921,0.39458,97136.0,97135.0,0.01609548]
[1739711581409,0.39458,97136.0,97135.0,0.01609547]
[1739711585219,0.36388,97136.0,97135.0,0.01609547]
[1739711586913,0.36388,97136.0,97135.0,1.51609547]
[1739711587517,0.36388,97136.0,97135.0,1.51609358]
[1739711588830,0.36388,97136.0,97135.0,1.5]
[1739711589026,0.36388,97136.0,97135.0,1.51609358]
[1739711589432,0.36388,97136.0,97135.0,0.01609358]
[1739711590122,0.36388,97136.0,97135.0,0.01609351]
[1739711595837,0.36388,97136.0,97135.0,0.01609359]
[1739711597939,0.00308,97136.0,97135.0,0.01609351]
[1739711600039,0.00308,97136.0,97135.0,0.01609344]
[1739711602036,0.00308,97136.0,97135.0,0.01609349]
[1739711605132,0.00308,97136.0,97134.0,0.0948]
[1739711605341,0.00308,97136.0,97135.0,0.01609333]
[1739711606243,0.00108,97136.0,97134.0,0.0948]
[1739711606542,0.00308,97136.0,97134.0,0.0948]
[1739711608335,0.00108,97136.0,97134.0,0.0948]
[1739711608541,0.00308,97136.0,97134.0,0.0948]
[1739711609945,0.00208,97136.0,97134.0,0.0948]
[1739711610146,0.00308,97136.0,97134.0,0.0948]
[1739711613453,0.0305,97135.0,97134.0,0.0948]
[1739711615045,0.0315,97135.0,97134.0,0.0948]
[1739711615651,0.0325,97135.0,97134.0,0.0948]
[1739711643492,0.0325,97135.0,97134.0,0.0647]
[1739711651215,0.0325,97135.0,97134.0,0.25007619]
[1739711655304,0.0325,97135.0,97134.0,0.0647]
[1739711658911,0.0325,97135.0,97133.0,8e-05]
[1739711661897,0.0315,97135.0,97133.0,8e-05]
[1739711662102,0.0325,97135.0,97133.0,8e-05]
[1739711669005,8e-05,97136.0,97133.0,8e-05]
[1739711669208,0.2218,97156.0,97133.0,8e-05]
[1739711669209,4e-05,97151.0,97134.0,0.3608]
[1739711669522,0.15389261,97145.0,97134.0,0.36084]
[1739711669817,0.15389261,97145.0,97144.0,1.8608]
[1739711670202,0.15377244,97145.0,97144.0,1.8608]
[1739711670408,0.15377244,97145.0,97144.0,1.87091259]
[1739711671215,0.15477244,97145.0,97144.0,1.87091259]
[1739711672418,0.15777244,97145.0,97144.0,1.87091259]
[1739711672717,0.15777244,97145.0,97144.0,1.8608]
[1739711672911,0.15677244,97145.0,97144.0,1.8608]
[1739711673216,0.15377244,97145.0,97144.0,1.8608]
[1739711673717,4e-05,97150.0,97144.0,1.8618]
[1739711673917,4e-05,97150.0,97145.0,0.16232]
[1739711676120,0.00104,97150.0,97145.0,0.16232]
[1739711676919,0.00104,97150.0,97145.0,0.13142]
[1739711677116,0.0302,97149.0,97145.0,0.21775721]
[1739711677315,0.03003983,97149.0,97145.0,0.21775721]
[1739711677514,0.03003983,97149.0,97146.0,4e-05]
[1739711679613,0.03303983,97149.0,97146.0,4e-05]
[1739711682219,0.003,97149.0,97146.0,4e-05]
[1739711684023,0.003,97149.0,97147.0,1.5]
[1739711684214,0.003,97149.0,97148.0,0.0307]
[1739711684721,0.002,97149.0,97148.0,0.0307]
[1739711684916,0.36079426,97158.0,97148.0,1.5307]
[1739711685422,0.36079426,97158.0,97149.0,0.0305]
[1739711687817,0.0306,97161.0,97151.0,0.3608]
[1739711688019,0.002,97158.0,97151.0,0.3608]
[1739711688627,0.0306,97161.0,97151.0,0.3608]
[1739711689217,0.24603369,97162.0,97159.0,0.3608]
[1739711689418,0.24603369,97162.0,97160.0,0.0972]
[1739711691328,0.24803369,97162.0,97160.0,0.0972]
[1739711691918,0.24703369,97162.0,97160.0,0.0972]
[1739711692527,0.001,97162.0,97160.0,0.0972]
[1739711692727,0.00010094,97163.0,97160.0,0.0972]
[1739711692929,0.0637,97171.0,97160.0,0.0972]
[1739711693230,0.0307,97171.0,97160.0,0.10735832]
[1739711694330,0.0317,97171.0,97160.0,0.10735832]
[1739711694526,0.0317,97171.0,97161.0,0.3608]
[1739711696630,0.0317,97171.0,97162.0,1.5]
[1739711698929,0.03153983,97171.0,97162.0,1.5]
[1739711699130,0.03153983,97171.0,97167.0,0.3608]
[1739711701125,0.03,97170.0,97167.0,0.3608]
[1739711702331,0.031,97170.0,97165.0,0.18485721]
[1739711704234,0.031,97170.0,97160.0,0.18485721]
[1739711706837,0.3608,97165.0,97160.0,0.18485721]
[1739711707037,0.0313,97164.0,97160.0,0.18485721]
[1739711708238,0.0323,97164.0,97160.0,0.18485721]
[1739711709128,0.0323,97164.0,97159.0,0.00015443]
[1739711710839,0.3608,97161.0,97159.0,0.00015443]
[1739711711139,0.0306,97160.0,97159.0,0.00015443]
[1739711713935,0.03043983,97160.0,97159.0,0.00015443]
[1739711715430,0.36132001,97161.0,97159.0,0.00015443]
[1739711715634,0.3608,97161.0,97159.0,0.00015443]
[1739711717037,0.3618,97161.0,97159.0,0.00015443]
[1739711722832,0.001,97161.0,97159.0,0.00015443]
[1739711724643,0.0317,97169.0,97159.0,0.00015443]
[1739711724847,0.001,97161.0,97159.0,0.00015443]
[1739711725753,0.3608,97173.0,97159.0,0.00115443]
[1739711725941,0.3711765,97173.0,97159.0,0.00115443]
[1739711726143,0.3711765,97173.0,97160.0,0.0306]
[1739711726345,0.3711765,97173.0,97160.0,0.04082894]
[1739711726640,0.001,97169.0,97160.0,0.04082894]
[1739711727244,0.37177651,97173.0,97160.0,0.04082894]
[1739711727454,0.3721765,97173.0,97160.0,0.04082894]
[1739711727949,0.001,97169.0,97160.0,0.04082894]
[1739711728847,0.00083983,97169.0,97160.0,0.04082894]
[1739711729651,0.37169651,97173.0,97160.0,0.04082894]
[1739711729951,0.3711765,97173.0,97163.0,0.18485721]
[1739711730750,0.3711765,97173.0,97164.0,1.5]
[1739711731253,0.3711765,97173.0,97163.0,0.18485721]
[1739711732455,0.3711765,97173.0,97163.0,0.18585721]
[1739711733953,0.3711765,97173.0,97168.0,0.18485721]
[1739711734151,0.3711765,97173.0,97169.0,0.0978]
[1739711736056,0.3711765,97173.0,97169.0,0.0988]
[1739711737257,0.0321,97177.0,97169.0,0.0988]
[1739711737655,0.0322,97181.0,97169.0,0.0988]
[1739711739055,0.0322,97181.0,97169.0,0.0978]
[1739711739257,0.0322,97181.0,97169.0,0.0988]
[1739711739455,0.031,97183.0,97169.0,0.0988]
[1739711739658,0.0302,97182.0,97169.0,0.0988]
[1739711740161,0.0302,97182.0,97169.0,0.0998]
[1739711742058,0.0302,97182.0,97171.0,0.18485721]
[1739711743469,0.0302,97182.0,97171.0,0.18585721]
[1739711743850,0.03003983,97182.0,97176.0,0.3608]
[1739711744170,0.031,97183.0,97176.0,0.3608]
[1739711744949,0.031,97183.0,97176.0,0.3618]
[1739711745556,0.031,97183.0,97176.0,0.3628]
[1739711747665,0.031,97183.0,97177.0,0.0318]
[1739711748763,0.031,97183.0,97177.0,0.0338]
[1739711749363,0.031,97183.0,97178.0,0.01608564]
[1739711749564,0.031,97183.0,97179.0,0.01608564]
[1739711749764,0.031,97183.0,97180.0,0.01608564]
[1739711749966,0.031,97183.0,97181.0,0.01608564]
[1739711750262,0.031,97183.0,97182.0,0.01608564]
[1739711751957,0.031,97183.0,97182.0,0.01708564]
[1739711752266,0.031,97183.0,97182.0,0.01808564]
[1739711753368,0.031,97183.0,97182.0,0.002]
[1739711753763,0.01053602,97192.0,97182.0,0.002]
[1739711753965,0.0646,97195.0,97184.0,0.3608]
[1739711754259,0.0646,97195.0,97185.0,0.0305]
[1739711755663,4e-05,97196.0,97192.0,0.3608]
[1739711755872,4e-05,97196.0,97193.0,0.061]
[1739711756362,4e-05,97196.0,97194.0,0.0312]
[1739711757762,4e-05,97196.0,97194.0,0.0322]
[1739711758781,0.09995983,97200.0,97194.0,0.0322]
[1739711759087,0.03209983,97199.0,97194.0,0.0322]
[1739711759988,0.03209983,97199.0,97195.0,4e-05]
[1739711760784,0.03185966,97199.0,97195.0,4e-05]
[1739711760982,0.03185966,97199.0,97196.0,4e-05]
[1739711761277,0.03157949,97199.0,97196.0,4e-05]
[1739711761484,0.09995983,97200.0,97196.0,4e-05]
[1739711761485,0.09995983,97200.0,97197.0,4e-05]
[1739711761876,0.0306,97211.0,97197.0,0.36084]
[1739711762076,0.0306,97211.0,97198.0,4e-05]
[1739711762277,0.03023983,97211.0,97205.0,0.3608]
[1739711762579,0.03023983,97211.0,97206.0,0.04708109]
[1739711762787,0.03023983,97211.0,97207.0,0.01608109]
[1739711762980,0.03023983,97211.0,97208.0,0.01608109]
[1739711763174,0.36132001,97212.0,97209.0,0.01608109]
[1739711763386,0.3608,97212.0,97210.0,0.01608109]
[1739711763586,0.3608,97212.0,97206.0,0.0953]
[1739711763975,0.01038349,97217.0,97207.0,0.001]
[1739711764181,0.18439728,97222.0,97207.0,0.001]
[1739711764384,0.0329,97221.0,97207.0,0.001]
[1739711764785,0.0329,97221.0,97206.0,0.0963]
[1739711764990,0.0329,97221.0,97206.0,0.0973]
[1739711765490,0.0329,97221.0,97207.0,0.01607965]
[1739711765685,0.0329,97221.0,97208.0,0.01607965]
[1739711765886,0.0329,97221.0,97209.0,1.51607965]
[1739711766087,0.0329,97221.0,97210.0,0.01607965]
[1739711766289,0.0329,97221.0,97211.0,0.01607965]
[1739711766486,0.15323711,97222.0,97212.0,0.01607965]
[1739711766687,0.15323711,97222.0,97209.0,1.50068]
[1739711766688,0.15323711,97222.0,97213.0,0.01607965]
[1739711766883,0.15323711,97222.0,97214.0,0.01607965]
[1739711767079,0.15323711,97222.0,97215.0,0.04847965]
[1739711767284,0.15323711,97222.0,97216.0,0.01607965]
[1739711767494,0.3608,97223.0,97217.0,0.01607965]
[1739711767687,0.3608,97223.0,97218.0,0.07657965]
[1739711767992,0.3608,97223.0,97219.0,0.01607965]
[1739711768193,0.3608,97223.0,97220.0,0.01607965]
[1739711768394,0.3608,97223.0,97221.0,0.01607965]
[1739711768583,0.0319,97229.0,97222.0,0.01607965]
[1739711768779,0.0319,97229.0,97223.0,0.01607965]
[1739711769089,0.0319,97229.0,97224.0,0.01607965]
[1739711769294,0.0319,97229.0,97225.0,0.01607965]
[1739711769491,0.0319,97229.0,97226.0,0.01607847]
[1739711769686,0.0319,97229.0,97227.0,0.01607847]
[1739711769890,0.0319,97229.0,97228.0,0.01607849]
[1739711770393,1e-08,97229.0,97228.0,0.01607849]
[1739711770691,0.0622,97238.0,97228.0,0.01607849]
[1739711770887,0.0622,97238.0,97229.0,0.01607849]
[1739711771089,0.0622,97238.0,97230.0,0.04757849]
[1739711771282,0.03,97238.0,97231.0,0.01607849]
[1739711771490,0.03,97238.0,97232.0,0.01607849]
[1739711771694,0.03,97238.0,97233.0,0.01607849]
[1739711771893,0.03,97238.0,97234.0,0.01607849]
[1739711772086,0.03,97238.0,97235.0,0.01607849]
[1739711772283,0.03,97238.0,97236.0,0.01607849]
[1739711772490,0.03,97238.0,97230.0,0.0325]
[1739711772491,0.03,97238.0,97237.0,0.01607849]
[1739711773792,0.02963983,97238.0,97237.0,0.01607849]
[1739711774190,0.02963983,97238.0,97237.0,0.01707687]
[1739711774903,0.02963983,97238.0,97237.0,0.01807687]
[1739711782095,0.02963983,97238.0,97237.0,0.01807671]
[1739711784103,0.02963983,97238.0,97237.0,0.04379939]
[1739711786698,0.02963983,97238.0,97237.0,0.04279939]
[1739711786898,0.02963983,97238.0,97237.0,0.04379939]
[1739711788202,0.02963983,97238.0,97237.0,0.04379911]
[1739711788603,0.02963983,97238.0,97237.0,0.002]
[1739711788809,0.02927966,97238.0,97237.0,0.01807658]
[1739711790411,0.02927966,97238.0,97237.0,0.01807656]
[1739711796513,0.02927966,97238.0,97237.0,0.01807663]
[1739711797517,0.033,97241.0,97237.0,0.01807663]
[1739711797712,0.0302,97243.0,97238.0,0.01607663]
[1739711797913,0.0302,97243.0,97239.0,0.01607663]
[1739711798215,0.0302,97243.0,97240.0,0.04627663]
[1739711798414,0.0302,97243.0,97240.0,0.0302]
[1739711798711,0.0302,97243.0,97241.0,0.04179906]
[1739711799018,0.0302,97243.0,97242.0,0.04179906]
[1739711800612,0.0302,97243.0,97242.0,0.04279906]
[1739711800814,0.0302,97243.0,97242.0,0.01707656]
[1739711802015,0.0302,97243.0,97242.0,0.01807656]
[1739711803825,0.02983983,97243.0,97242.0,0.01807656]
[1739711805124,0.02983983,97243.0,97242.0,0.01807655]
[1739711805718,0.02983983,97243.0,97242.0,0.002]
[1739711806832,0.02983983,97243.0,97242.0,0.01807655]
[1739711808836,0.02983983,97243.0,97242.0,0.002]
[1739711809027,0.02983983,97243.0,97242.0,0.01807654]
[1739711811820,0.02983983,97243.0,97242.0,0.002]
[1739711812931,0.02983983,97243.0,97242.0,0.01807654]
[1739711815726,0.39172001,97246.0,97242.0,0.01807654]
[1739711815920,0.3912,97246.0,97242.0,0.002]
[1739711816922,0.3912,97246.0,97243.0,0.01607654]
[1739711817123,0.3912,97246.0,97244.0,0.01607654]
[1739711817325,0.3912,97246.0,97245.0,0.01607654]
[1739711817731,0.3608,97246.0,97245.0,0.01607654]
[1739711817933,0.3608,97246.0,97242.0,0.002]
[1739711818230,0.3608,97246.0,97242.0,0.001]
[1739711818430,0.3608,97246.0,97244.0,0.001]
[1739711818933,0.36043983,97246.0,97245.0,0.001]
[1739711819332,0.36043983,97246.0,97245.0,1.5]
[1739711819531,0.36043983,97246.0,97244.0,0.001]